fUST/lending_fUST_20250208
["ID","MTS","AMOUNT","RATE_DAILY","PERIOD"]
[352157213,1738963839298,-697.86,0.00010958,2]
[352157214,1738963839307,-500.0,0.00010958,2]
[352157215,1738963839317,-500.0,0.00010958,2]
[352157216,1738963839326,-500.0,0.00010958,2]
[352157217,1738963839336,-500.0,0.00010958,2]
[352157218,1738963839345,-523.65,0.00010958,2]
[352157219,1738963839354,-2228.56,0.00010958,2]
[352157221,1738963839364,-521.96,0.00010958,2]
[352157222,1738963839373,-500.0,0.00010958,2]
[352157223,1738963839383,-1397.91,0.00010958,2]
[352157224,1738963839393,-500.0,0.00010958,2]
[352157225,1738963839403,-500.0,0.00010958,2]
[352157226,1738963839413,-598.53,0.00010958,2]
[352157227,1738963839424,-506.06780096,0.00010958,2]
[352157228,1738963839434,-525.17,0.00010958,2]
[352157229,1738963839444,-3142.85,0.00010958,2]
[352157230,1738963839453,-500.0,0.00010958,2]
[352157231,1738963839463,-500.0,0.00010958,2]
[352157232,1738963839472,-500.0,0.00010958,2]
[352157233,1738963839482,-2886.61,0.00010958,2]
[352157234,1738963839491,-500.0,0.00010958,2]
[352157235,1738963839501,-1793.37,0.00010958,2]
[352157236,1738963839510,-500.0,0.00010958,2]
[352157237,1738963839519,-64.46924631,0.00010958,2]
[352157238,1738963839534,-435.53075369,0.00010958,2]
[352157239,1738963839545,-618.57,0.00010958,2]
[352157240,1738963839555,-500.0,0.00010958,2]
[352157241,1738963839564,-500.0,0.00010958,2]
[352157242,1738963839574,-500.0,0.00010958,2]
[352157243,1738963839584,-500.0,0.00010958,2]
[352157244,1738963839594,-500.0,0.00010958,2]
[352157245,1738963839603,-500.0,0.00010958,2]
[352157246,1738963839613,-500.0,0.00010958,2]
[352157248,1738963839622,-500.0,0.00010958,2]
[352157250,1738963839631,-500.0,0.00010958,2]
[352157252,1738963839641,-500.0,0.00010958,2]
[352157254,1738963839650,-500.0,0.00010958,2]
[352157255,1738963839659,-11001.73,0.00010958,2]
[352157256,1738963839668,-1340.91,0.00010958,2]
[352157258,1738963839679,-500.0,0.00010958,2]
[352157259,1738963839688,-1898.44,0.00010958,2]
[352157260,1738963839698,-500.0,0.00010958,2]
[352157261,1738963839707,-500.0,0.00010958,2]
[352157262,1738963839716,-500.0,0.00010958,2]
[352157264,1738963839725,-500.0,0.00010958,2]
[352157266,1738963839734,-3950.87,0.00010958,2]
[352157268,1738963839743,-764.97,0.00010958,2]
[352157269,1738963839753,-500.0,0.00010958,2]
[352157271,1738963839763,-6120.27,0.00010958,2]
[352157272,1738963839773,-500.0,0.00010958,2]
[352157274,1738963839782,-833.8,0.00010958,2]
[352157275,1738963839792,-500.0,0.00010958,2]
[352157277,1738963839801,-500.0,0.00010958,2]
[352157279,1738963839810,-500.0,0.00010958,2]
[352157281,1738963839819,-500.0,0.00010958,2]
[352157282,1738963839828,-500.0,0.00010958,2]
[352157284,1738963839838,-562.22,0.00010958,2]
[352157286,1738963839847,-500.0,0.00010958,2]
[352157287,1738963839856,-1837.93,0.00010958,2]
[352157289,1738963839869,-500.0,0.00010958,2]
[352157291,1738963839879,-500.0,0.00010958,2]
[352157293,1738963839889,-500.0,0.00010958,2]
[352157294,1738963839899,-455.42794334,0.00010958,2]
[352157295,1738963839910,-1818.87,0.00010958,2]
[352157297,1738963839920,-500.0,0.00010958,2]
[352157299,1738963839932,-34020.78,0.00010958,2]
[352157301,1738963839942,-500.0,0.00010958,2]
[352157303,1738963839952,-500.0,0.00010958,2]
[352157304,1738963839963,-500.0,0.00010958,2]
[352157305,1738963839973,-1615.98,0.00010958,2]
[352157306,1738963839983,-500.0,0.00010958,2]
[352157307,1738963839993,-500.0,0.00010958,2]
[352157309,1738963840003,-500.0,0.00010958,2]
[352157311,1738963840012,-580.84,0.00010958,2]
[352157312,1738963840022,-500.0,0.00010958,2]
[352157314,1738963840031,-1426.57,0.00010958,2]
[352157315,1738963840041,-500.0,0.00010958,2]
[352157316,1738963840050,-1095.98,0.00010958,2]
[352157317,1738963840060,-517.46965021,0.00010958,2]
[352157318,1738963840070,-500.0,0.00010958,2]
[352157319,1738963840080,-500.0,0.00010958,2]
[352157320,1738963840090,-500.0,0.00010958,2]
[352157321,1738963840099,-500.0,0.00010958,2]
[352157323,1738963840109,-805.26,0.00010958,2]
[352157326,1738963840119,-500.0,0.00010958,2]
[352157327,1738963840129,-1479.83,0.00010958,2]
[352157328,1738963840139,-13927.1,0.00010958,2]
[352157329,1738963840148,-500.0,0.00010958,2]
[352157330,1738963840158,-851.82,0.00010958,2]
[352157331,1738963840168,-516.34,0.00010958,2]
[352157332,1738963840178,-500.0,0.00010958,2]
[352157333,1738963840187,-500.0,0.00010958,2]
[352157334,1738963840197,-500.0,0.00010958,2]
[352157335,1738963840207,-500.0,0.00010958,2]
[352157336,1738963840216,-500.0,0.00010958,2]
[352157337,1738963840226,-643.09,0.00010958,2]
[352157338,1738963840235,-500.0,0.00010958,2]
[352157339,1738963840244,-666.18,0.00010958,2]
[352157340,1738963840254,-448.35721145,0.00010958,2]
[352157341,1738963840263,-500.0,0.00010958,2]
[352157342,1738963840273,-500.0,0.00010958,2]
[352157343,1738963840283,-1258.69,0.00010958,2]
[352157344,1738963840292,-500.0,0.00010958,2]
[352157345,1738963840302,-500.0,0.00010958,2]
[352157346,1738963840312,-500.0,0.00010958,2]
[352157347,1738963840321,-500.0,0.00010958,2]
[352157348,1738963840330,-500.0,0.00010958,2]
[352157349,1738963840340,-613.02,0.00010958,2]
[352157350,1738963840350,-500.0,0.00010958,2]
[352157351,1738963840359,-500.0,0.00010958,2]
[352157352,1738963840368,-500.0,0.00010958,2]
[352157353,1738963840378,-4127.33,0.00010958,2]
[352157354,1738963840387,-539.46,0.00010958,2]
[352157355,1738963840397,-3732.67,0.00010958,2]
[352157356,1738963840406,-515.15,0.00010958,2]
[352157357,1738963840415,-500.0,0.00010958,2]
[352157358,1738963840426,-3856.81,0.00010958,2]
[352157359,1738963840435,-500.0,0.00010958,2]
[352157360,1738963840445,-1721.16,0.00010958,2]
[352157361,1738963840454,-733.11,0.00010958,2]
[352157362,1738963840463,-500.0,0.00010958,2]
[352157363,1738963840473,-1023.64,0.00010958,2]
[352157364,1738963840483,-10544.24,0.00010958,2]
[352157365,1738963840492,-1867.74,0.00010958,2]
[352157366,1738963840502,-500.0,0.00010958,2]
[352157367,1738963840511,-500.0,0.00010958,2]
[352157368,1738963840522,-500.0,0.00010958,2]
[352157369,1738963840531,-1222.16,0.00010958,2]
[352157370,1738963840540,-500.0,0.00010958,2]
[352157371,1738963840550,-500.0,0.00010958,2]
[352157372,1738963840559,-500.0,0.00010958,2]
[352157373,1738963840568,-500.0,0.00010958,2]
[352157374,1738963840577,-523.4841126,0.00010958,2]
[352157375,1738963840585,-500.0,0.00010958,2]
[352157376,1738963840595,-500.0,0.00010958,2]
[352157377,1738963840604,-299.999999,0.00011,2]
[352157378,1738963840613,-500.0,0.00011095,2]
[352157379,1738963840622,-158.96,0.00011095,2]
[352157380,1738963840632,-500.0,0.00011095,2]
[352157381,1738963840641,-500.0,0.00011095,2]
[352157382,1738963840650,-512.80143357,0.00011095,2]
[352157383,1738963840659,-500.0,0.00011095,2]
[352157384,1738963840669,-509.48,0.00011095,2]
[352157385,1738963840681,-500.0,0.00011095,2]
[352157386,1738963840691,-500.0,0.00011095,2]
[352157387,1738963840700,-500.0,0.00011095,2]
[352157388,1738963840709,-741.06,0.00011095,2]
[352157389,1738963840719,-240.21354465,0.00011095,2]
[352157390,1738963840729,-500.0,0.00011095,2]
[352157391,1738963840738,-500.0,0.00011095,2]
[352157392,1738963840747,-500.0,0.00011095,2]
[352157393,1738963840757,-500.0,0.00011095,2]
[352157394,1738963840766,-576.21,0.00011095,2]
[352157395,1738963840775,-500.0,0.00011095,2]
[352157396,1738963840784,-500.0,0.00011095,2]
[352157397,1738963840794,-500.0,0.00011095,2]
[352157398,1738963840803,-424.22,0.00011095,2]
[352157399,1738963840813,-500.0,0.00011095,2]
[352157400,1738963840822,-500.0,0.00011095,2]
[352157401,1738963840831,-500.0,0.00011095,2]
[352157402,1738963840840,-500.0,0.00011095,2]
[352157403,1738963840853,-500.0,0.00011095,2]
[352157404,1738963840862,-500.0,0.00011095,2]
[352157405,1738963840872,-500.0,0.00011095,2]
[352157406,1738963840882,-533.05,0.00011095,2]
[352157407,1738963840891,-500.0,0.00011095,2]
[352157408,1738963840901,-500.0,0.00011095,2]
[352157409,1738963840910,-500.0,0.00011095,2]
[352157410,1738963840920,-787.74,0.00011095,2]
[352157411,1738963840931,-500.0,0.00011095,2]
[352157412,1738963840941,-269.02,0.00011095,2]
[352157413,1738963840951,-500.0,0.00011095,2]
[352157414,1738963840961,-500.0,0.00011095,2]
[352157415,1738963840971,-706.53,0.00011095,2]
[352157416,1738963840980,-571.21,0.00011095,2]
[352157417,1738963840989,-751.16,0.00011095,2]
[352157418,1738963840999,-721.07,0.00011095,2]
[352157419,1738963841008,-159.9,0.00011095,2]
[352157420,1738963841017,-500.0,0.00011095,2]
[352157421,1738963841027,-500.0,0.00011095,2]
[352157422,1738963841037,-500.0,0.00011095,2]
[352157423,1738963841047,-500.0,0.00011095,2]
[352157424,1738963841057,-268.87,0.00011095,2]
[352157425,1738963841067,-507.43,0.00011095,2]
[352157426,1738963841076,-799.3,0.00011095,2]
[352157427,1738963841085,-553.56,0.00011095,2]
[352157428,1738963841095,-253.51,0.00011095,2]
[352157429,1738963841105,-500.0,0.00011095,2]
[352157430,1738963841115,-500.0,0.00011095,2]
[352157431,1738963841124,-914.86,0.00011095,2]
[352157432,1738963841134,-486.67,0.00011095,2]
[352157433,1738963841143,-1200.25,0.00011095,2]
[352157434,1738963841152,-541.5333478,0.00011095,2]
[352157435,1738963841162,-500.0,0.00011095,2]
[352157436,1738963841172,-500.0,0.00011095,2]
[352157437,1738963841185,-611.22,0.00011095,2]
[352157438,1738963841195,-500.0,0.00011095,2]
[352157439,1738963841206,-500.0,0.00011095,2]
[352157440,1738963841215,-541.34,0.00011095,2]
[352157441,1738963841225,-4968.44,0.00011095,2]
[352157442,1738963841236,-500.0,0.00011095,2]
[352157443,1738963841246,-697.86,0.00011095,2]
[352157444,1738963841256,-500.0,0.00011095,2]
[352157445,1738963841266,-500.0,0.00011095,2]
[352157446,1738963841275,-523.65,0.00011095,2]
[352157447,1738963841286,-2228.56,0.00011095,2]
[352157448,1738963841296,-521.96,0.00011095,2]
[352157449,1738963841307,-500.0,0.00011095,2]
[352157450,1738963841317,-1397.91,0.00011095,2]
[352157451,1738963841327,-500.0,0.00011095,2]
[352157452,1738963841337,-598.53,0.00011095,2]
[352157453,1738963841348,-3142.85,0.00011095,2]
[352157454,1738963841358,-500.0,0.00011095,2]
[352157455,1738963841369,-500.0,0.00011095,2]
[352157456,1738963841379,-2886.61,0.00011095,2]
[352157457,1738963841390,-500.0,0.00011095,2]
[352157458,1738963841400,-1793.37,0.00011095,2]
[352157459,1738963841411,-618.57,0.00011095,2]
[352157460,1738963841422,-500.0,0.00011095,2]
[352157461,1738963841441,-495.41,0.00011095,2]
[352157462,1738963841452,-500.0,0.00011095,2]
[352157463,1738963841464,-500.0,0.00011095,2]
[352157464,1738963841475,-500.0,0.00011095,2]
[352157465,1738963841486,-11001.73,0.00011095,2]
[352157466,1738963841496,-1340.91,0.00011095,2]
[352157467,1738963841507,-500.0,0.00011095,2]
[352157468,1738963841517,-1898.44,0.00011095,2]
[352157469,1738963841528,-500.0,0.00011095,2]
[352157470,1738963841539,-500.0,0.00011095,2]
[352157471,1738963841549,-500.0,0.00011095,2]
[352157472,1738963841560,-3950.87,0.00011095,2]
[352157473,1738963841571,-764.97,0.00011095,2]
[352157474,1738963841581,-500.0,0.00011095,2]
[352157475,1738963841591,-6120.27,0.00011095,2]
[352157476,1738963841603,-833.8,0.00011095,2]
[352157477,1738963841612,-600.61,0.00011095,2]
[352157478,1738963841622,-500.0,0.00011095,2]
[352157479,1738963841634,-500.0,0.00011095,2]
[352157480,1738963841643,-562.22,0.00011095,2]
[352157481,1738963841652,-1837.93,0.00011095,2]
[352157482,1738963841662,-500.0,0.00011095,2]
[352157483,1738963841672,-500.0,0.00011095,2]
[352157484,1738963841686,-500.0,0.00011095,2]
[352157485,1738963841695,-1818.87,0.00011095,2]
[352157486,1738963841704,-34020.78,0.00011095,2]
[352157487,1738963841714,-500.0,0.00011095,2]
[352157488,1738963841723,-500.0,0.00011095,2]
[352157489,1738963841733,-1615.98,0.00011095,2]
[352157490,1738963841742,-500.0,0.00011095,2]
[352157491,1738963841753,-580.84,0.00011095,2]
[352157492,1738963841762,-1426.57,0.00011095,2]
[352157493,1738963841771,-500.0,0.00011095,2]
[352157494,1738963841780,-1095.98,0.00011095,2]
[352157495,1738963841789,-500.0,0.00011095,2]
[352157496,1738963841798,-500.0,0.00011095,2]
[352157497,1738963841807,-500.0,0.00011095,2]
[352157498,1738963841816,-805.26,0.00011095,2]
[352157499,1738963841826,-500.0,0.00011095,2]
[352157500,1738963841834,-1479.83,0.00011095,2]
[352157501,1738963841843,-13927.1,0.00011095,2]
[352157502,1738963841853,-500.0,0.00011095,2]
[352157503,1738963841863,-851.82,0.00011095,2]
[352157504,1738963841877,-500.0,0.00011095,2]
[352157505,1738963841886,-550.45,0.00011095,2]
[352157506,1738963841895,-500.0,0.00011095,2]
[352157507,1738963841905,-500.0,0.00011095,2]
[352157508,1738963841914,-500.0,0.00011095,2]
[352157509,1738963841924,-666.18,0.00011095,2]
[352157510,1738963841937,-500.0,0.00011095,2]
[352157511,1738963841948,-1258.69,0.00011095,2]
[352157512,1738963841957,-500.0,0.00011095,2]
[352157513,1738963841966,-500.0,0.00011095,2]
[352157514,1738963841976,-613.02,0.00011095,2]
[352157515,1738963841985,-186.15,0.00011095,2]
[352157516,1738963841994,-500.0,0.00011095,2]
[352157517,1738963842003,-4127.33,0.00011095,2]
[352157518,1738963842012,-539.46,0.00011095,2]
[352157519,1738963842021,-3732.67,0.00011095,2]
[352157520,1738963842031,-575.02,0.00011095,2]
[352157521,1738963842041,-3856.81,0.00011095,2]
[352157522,1738963842050,-500.0,0.00011095,2]
[352157523,1738963842059,-1721.16,0.00011095,2]
[352157524,1738963842069,-733.11,0.00011095,2]
[352157525,1738963842079,-1023.64,0.00011095,2]
[352157526,1738963842088,-10544.24,0.00011095,2]
[352157527,1738963842098,-1867.74,0.00011095,2]
[352157528,1738963842107,-500.0,0.00011095,2]
[352157529,1738963842117,-1222.16,0.00011095,2]
[352157530,1738963842127,-294.02,0.00011095,2]
[352157531,1738963842136,-500.0,0.00011095,2]
[352157532,1738963842146,-500.0,0.00011095,2]
[352157533,1738963842156,-420.0,0.00011163,2]
[352157534,1738963842165,-151.0,0.00011232,2]
[352157535,1738963842174,-151.0,0.00011232,2]
[352157536,1738963842187,-151.0,0.00011232,2]
[352157537,1738963842196,-500.0,0.00011232,2]
[352157538,1738963842206,-500.0,0.00011232,2]
[352157539,1738963842215,-500.0,0.00011232,2]
[352157540,1738963842225,-500.0,0.00011232,2]
[352157541,1738963842237,-741.06,0.00011232,2]
[352157542,1738963842247,-500.0,0.00011232,2]
[352157543,1738963842256,-538.34,0.00011232,2]
[352157544,1738963842267,-576.21,0.00011232,2]
[352157545,1738963842277,-500.0,0.00011232,2]
[352157546,1738963842286,-500.0,0.00011232,2]
[352157547,1738963842296,-500.0,0.00011232,2]
[352157548,1738963842305,-500.0,0.00011232,2]
[352157549,1738963842315,-500.0,0.00011232,2]
[352157550,1738963842324,-500.0,0.00011232,2]
[352157551,1738963842333,-485.48406996,0.00011232,2]
[352157552,1738963842342,-500.0,0.00011232,2]
[352157553,1738963842351,-500.0,0.00011232,2]
[352157554,1738963842361,-533.05,0.00011232,2]
[352157555,1738963842370,-500.0,0.00011232,2]
[352157556,1738963842379,-500.0,0.00011232,2]
[352157557,1738963842388,-787.74,0.00011232,2]
[352157558,1738963842397,-500.0,0.00011232,2]
[352157559,1738963842406,-500.0,0.00011232,2]
[352157560,1738963842415,-706.53,0.00011232,2]
[352157561,1738963842424,-751.16,0.00011232,2]
[352157562,1738963842436,-721.07,0.00011232,2]
[352157563,1738963842445,-500.0,0.00011232,2]
[352157564,1738963842454,-500.0,0.00011232,2]
[352157565,1738963842464,-500.0,0.00011232,2]
[352157566,1738963842473,-507.43,0.00011232,2]
[352157567,1738963842482,-799.3,0.00011232,2]
[352157568,1738963842491,-241.32,0.00011232,2]
[352157569,1738963842500,-914.86,0.00011232,2]
[352157570,1738963842509,-1200.25,0.00011232,2]
[352157571,1738963842518,-500.0,0.00011232,2]
[352157572,1738963842528,-500.0,0.00011232,2]
[352157573,1738963842537,-611.22,0.00011232,2]
[352157574,1738963842546,-500.0,0.00011232,2]
[352157575,1738963842555,-500.0,0.00011232,2]
[352157576,1738963842564,-541.34,0.00011232,2]
[352157577,1738963842573,-4968.44,0.00011232,2]
[352157578,1738963842583,-500.0,0.00011232,2]
[352157579,1738963842592,-697.86,0.00011232,2]
[352157580,1738963842601,-356.32,0.00011232,2]
[352157581,1738963842610,-500.0,0.00011232,2]
[352157582,1738963842619,-523.65,0.00011232,2]
[352157583,1738963842628,-2228.56,0.00011232,2]
[352157584,1738963842637,-521.96,0.00011232,2]
[352157585,1738963842646,-500.0,0.00011232,2]
[352157586,1738963842655,-1397.91,0.00011232,2]
[352157587,1738963842664,-598.53,0.00011232,2]
[352157588,1738963842674,-3142.85,0.00011232,2]
[352157589,1738963842685,-500.0,0.00011232,2]
[352157590,1738963842695,-500.0,0.00011232,2]
[352157591,1738963842704,-2886.61,0.00011232,2]
[352157592,1738963842713,-1793.37,0.00011232,2]
[352157593,1738963842722,-618.57,0.00011232,2]
[352157594,1738963842731,-500.0,0.00011232,2]
[352157595,1738963842740,-500.0,0.00011232,2]
[352157596,1738963842750,-500.0,0.00011232,2]
[352157597,1738963842759,-11001.73,0.00011232,2]
[352157598,1738963842768,-1340.91,0.00011232,2]
[352157599,1738963842777,-500.0,0.00011232,2]
[352157600,1738963842786,-1898.44,0.00011232,2]
[352157601,1738963842795,-500.0,0.00011232,2]
[352157602,1738963842805,-500.0,0.00011232,2]
[352157603,1738963842814,-764.97,0.00011232,2]
[352157604,1738963842823,-3950.87,0.00011232,2]
[352157605,1738963842833,-500.0,0.00011232,2]
[352157606,1738963842842,-6120.27,0.00011232,2]
[352157607,1738963842857,-833.8,0.00011232,2]
[352157608,1738963842867,-500.0,0.00011232,2]
[352157609,1738963842876,-500.0,0.00011232,2]
[352157610,1738963842886,-562.22,0.00011232,2]
[352157611,1738963842896,-1837.93,0.00011232,2]
[352157612,1738963842906,-500.0,0.00011232,2]
[352157613,1738963843064,-1818.87,0.00011232,2]
[352157614,1738963843074,-34020.78,0.00011232,2]
[352157615,1738963843084,-1615.98,0.00011232,2]
[352157616,1738963843093,-500.0,0.00011232,2]
[352157617,1738963843103,-580.84,0.00011232,2]
[352157618,1738963843112,-1426.57,0.00011232,2]
[352157619,1738963843121,-1095.98,0.00011232,2]
[352157620,1738963843131,-500.0,0.00011232,2]
[352157621,1738963843140,-500.0,0.00011232,2]
[352157622,1738963843149,-500.0,0.00011232,2]
[352157623,1738963843158,-805.26,0.00011232,2]
[352157624,1738963843167,-500.0,0.00011232,2]
[352157625,1738963843177,-1479.83,0.00011232,2]
[352157626,1738963843187,-13927.1,0.00011232,2]
[352157627,1738963843196,-500.0,0.00011232,2]
[352157628,1738963843205,-851.82,0.00011232,2]
[352157629,1738963843214,-500.0,0.00011232,2]
[352157630,1738963843224,-500.0,0.00011232,2]
[352157631,1738963843233,-500.0,0.00011232,2]
[352157632,1738963843242,-500.0,0.00011232,2]
[352157633,1738963843251,-666.18,0.00011232,2]
[352157634,1738963843260,-500.0,0.00011232,2]
[352157635,1738963843269,-1258.69,0.00011232,2]
[352157636,1738963843279,-500.0,0.00011232,2]
[352157637,1738963843288,-500.0,0.00011232,2]
[352157638,1738963843297,-613.02,0.00011232,2]
[352157639,1738963843306,-500.0,0.00011232,2]
[352157640,1738963843315,-539.46,0.00011232,2]
[352157641,1738963843331,-4127.33,0.00011232,2]
[352157642,1738963843340,-3732.67,0.00011232,2]
[352157643,1738963843349,-3856.81,0.00011232,2]
[352157644,1738963843359,-500.0,0.00011232,2]
[352157645,1738963843368,-1721.16,0.00011232,2]
[352157646,1738963843378,-733.11,0.00011232,2]
[352157647,1738963843387,-1023.64,0.00011232,2]
[352157648,1738963843397,-10544.24,0.00011232,2]
[352157649,1738963843407,-1867.74,0.00011232,2]
[352157650,1738963843416,-500.0,0.00011232,2]
[352157651,1738963843425,-739.77842799,0.00011232,2]
[352157652,1738963843443,-482.38157201,0.00011232,2]
[352157654,1738963843452,-500.0,0.00011232,2]
[352157656,1738963843462,-500.0,0.00011232,2]
[352157658,1738963843471,-500.0,0.00011336,2]
[352157660,1738963843480,-500.0,0.00011336,2]
[352157661,1738963843489,-500.0,0.00011336,2]
[352157662,1738963843498,-211.32666311,0.00011336,2]
[352157663,1738963843507,-500.0,0.00011346,2]
[352157664,1738963843517,-151.0,0.00011369,2]
[352157665,1738963843527,-151.0,0.00011369,2]
[352157666,1738963843537,-151.0,0.00011369,2]
[352157667,1738963843546,-500.0,0.00011369,2]
[352157668,1738963843556,-500.0,0.00011369,2]
[352157669,1738963843565,-425.739,0.00011369,2]
[352157671,1738963843575,-500.0,0.00011369,2]
[352157673,1738963843584,-741.06,0.00011369,2]
[352157675,1738963843594,-500.0,0.00011369,2]
[352157676,1738963843604,-576.21,0.00011369,2]
[352157677,1738963843613,-500.0,0.00011369,2]
[352157679,1738963843622,-500.0,0.00011369,2]
[352157680,1738963843631,-500.0,0.00011369,2]
[352157681,1738963843640,-240.54372462,0.00011369,2]
[352157682,1738963843652,-193.0421467,0.00011369,2]
[352157683,1738963843662,-349.67138978,0.00011369,2]
[352157684,1738963843680,-150.32861022,0.00011369,2]
[352157685,1738963843691,-500.0,0.00011369,2]
[352157686,1738963843702,-500.0,0.00011369,2]
[352157687,1738963843713,-500.0,0.00011369,2]
[352157688,1738963843723,-533.05,0.00011369,2]
[352157690,1738963843733,-500.0,0.00011369,2]
[352157691,1738963843743,-500.0,0.00011369,2]
[352157692,1738963843754,-787.74,0.00011369,2]
[352157693,1738963843764,-500.0,0.00011369,2]
[352157694,1738963843774,-500.0,0.00011369,2]
[352157695,1738963843784,-706.53,0.00011369,2]
[352157697,1738963843794,-751.16,0.00011369,2]
[352157698,1738963843804,-721.07,0.00011369,2]
[352157699,1738963843813,-500.0,0.00011369,2]
[352157700,1738963843823,-151.54,0.00011369,2]
[352157701,1738963843833,-372.72,0.00011369,2]
[352157702,1738963843842,-507.43,0.00011369,2]
[352157703,1738963843853,-799.3,0.00011369,2]
[352157704,1738963843864,-914.86,0.00011369,2]
[352157705,1738963843875,-1200.25,0.00011369,2]
[352157706,1738963843885,-500.0,0.00011369,2]
[352157707,1738963843896,-500.0,0.00011369,2]
[352157708,1738963843907,-611.22,0.00011369,2]
[352157709,1738963843917,-500.0,0.00011369,2]
[352157710,1738963843928,-500.0,0.00011369,2]
[352157711,1738963843939,-541.34,0.00011369,2]
[352157712,1738963843951,-4968.44,0.00011369,2]
[352157714,1738963843961,-500.0,0.00011369,2]
[352157716,1738963843971,-697.86,0.00011369,2]
[352157717,1738963843980,-199.12,0.00011369,2]
[352157718,1738963843990,-523.65,0.00011369,2]
[352157719,1738963844000,-2228.56,0.00011369,2]
[352157720,1738963844010,-521.96,0.00011369,2]
[352157721,1738963844020,-500.0,0.00011369,2]
[352157722,1738963844030,-1397.91,0.00011369,2]
[352157723,1738963844040,-598.53,0.00011369,2]
[352157725,1738963844049,-3142.85,0.00011369,2]
[352157726,1738963844059,-425.84481811,0.00011369,2]
[352157727,1738963844069,-2886.61,0.00011369,2]
[352157728,1738963844079,-1793.37,0.00011369,2]
[352157729,1738963844090,-618.57,0.00011369,2]
[352157730,1738963844101,-500.0,0.00011369,2]
[352157731,1738963844112,-500.0,0.00011369,2]
[352157732,1738963844122,-500.0,0.00011369,2]
[352157733,1738963844132,-11001.73,0.00011369,2]
[352157735,1738963844143,-1340.91,0.00011369,2]
[352157736,1738963844153,-500.0,0.00011369,2]
[352157737,1738963844163,-1898.44,0.00011369,2]
[352157738,1738963844174,-500.0,0.00011369,2]
[352157739,1738963844187,-500.0,0.00011369,2]
[352157740,1738963844197,-764.97,0.00011369,2]
[352157741,1738963844207,-3950.87,0.00011369,2]
[352157742,1738963844218,-500.0,0.00011369,2]
[352157743,1738963844228,-6120.27,0.00011369,2]
[352157744,1738963844238,-833.8,0.00011369,2]
[352157745,1738963844248,-500.0,0.00011369,2]
[352157746,1738963844258,-635.5727269,0.00011369,2]
[352157747,1738963844268,-562.22,0.00011369,2]
[352157748,1738963844277,-1837.93,0.00011369,2]
[352157749,1738963844288,-500.0,0.00011369,2]
[352157750,1738963844298,-1818.87,0.00011369,2]
[352157751,1738963844308,-34020.78,0.00011369,2]
[352157752,1738963844318,-1615.98,0.00011369,2]
[352157753,1738963844328,-500.0,0.00011369,2]
[352157754,1738963844339,-580.84,0.00011369,2]
[352157755,1738963844350,-1426.57,0.00011369,2]